bitfinex-derivatives/quotes_ETHF0:USTF0_20250420
["timestamp","ask_amount","ask_price","bid_price","bid_amount"]
[1745136428938,3.2078,1594.6,1594.5,6.80001]
[1745136429142,3.2078,1594.6,1594.5,11.80001]
[1745136431549,4.46213,1594.6,1594.5,5.5456]
[1745136431748,3.2078,1594.6,1594.5,5.5456]
[1745136433651,4.46213,1594.6,1594.5,5.5456]
[1745136433851,4.9726,1594.6,1594.5,5.5456]
[1745136434053,4.9726,1594.6,1594.5,6.80001]
[1745136435353,4.9726,1594.6,1594.5,5.5456]
[1745136435855,4.9726,1594.6,1594.5,6.80001]
[1745136436351,6.22693,1594.6,1594.5,2.228]
[1745136436556,7.95183,1594.6,1594.5,2.228]
[1745136438452,4.74403,1594.6,1594.5,2.228]
[1745136439257,9.72814453,1594.6,1594.5,2.228]
[1745136442061,14.72814453,1594.6,1594.5,2.228]
[1745136442754,21.01159389,1594.6,1594.5,2.228]
[1745136443148,3.13603,1594.5,1594.0,3.2078]
[1745136443451,1.25469,1594.2,1594.0,1.2548]
[1745136443650,1.25469,1594.2,1594.0,2.8769]
[1745136443853,1.5949,1594.1,1594.0,2.8769]
[1745136444260,1.5949,1594.1,1594.0,5.1049]
[1745136447164,1.5949,1594.1,1594.0,3.8501]
[1745136447457,5.8384748,1594.2,1594.0,5.9642]
[1745136447658,4.1842748,1594.2,1594.1,6.8101]
[1745136448161,5.4389148,1594.2,1594.1,6.8101]
[1745136448361,7.1500148,1594.2,1594.1,6.8101]
[1745136450460,5.8953748,1594.2,1594.1,8.06482]
[1745136450656,8.6466848,1594.3,1594.1,8.06482]
[1745136450854,10.3577848,1594.3,1594.2,1.74]
[1745136452163,9.1031748,1594.3,1594.2,1.74]
[1745136452463,9.1031748,1594.3,1594.2,2.5655]
[1745136453163,9.1031748,1594.3,1594.2,4.7935]
[1745136454966,9.1031748,1594.3,1594.2,6.04814]
[1745136454967,4.9189,1594.3,1594.2,6.04814]
[1745136455764,4.9189,1594.3,1594.2,5.22264]
[1745136457063,4.9189,1594.3,1594.2,3.48264]
[1745136457363,4.9189,1594.3,1594.2,2.228]
[1745136458868,4.9189,1594.3,1594.2,3.48264]
[1745136462769,4.9189,1594.3,1594.2,5.20294]
[1745136463574,9.1031748,1594.3,1594.2,5.20294]
[1745136464875,9.1031748,1594.3,1594.2,6.06644]
[1745136466674,4.9189,1594.3,1594.2,6.06644]
[1745136467074,6.17346,1594.3,1594.2,2.228]
[1745136467268,11.17346,1594.3,1594.2,2.228]
[1745136467977,6.17346,1594.3,1594.2,2.228]
[1745136471175,6.17346,1594.3,1594.2,3.48264]
[1745136471372,6.17346,1594.3,1594.2,2.228]
[1745136471975,13.25692295,1594.3,1594.2,2.228]
[1745136473074,13.25692295,1594.3,1594.2,3.48264]
[1745136473277,13.25692295,1594.3,1594.2,2.228]
[1745136477678,10.04912295,1594.3,1594.2,2.228]
[1745136477878,13.25692295,1594.3,1594.2,2.228]
[1745136482480,10.29126295,1594.3,1594.2,2.228]
[1745136482682,10.29126295,1594.3,1594.2,6.86134]
[1745136483477,9.1011745,1594.3,1594.2,6.86134]
[1745136483779,9.1011745,1594.3,1594.2,11.86134]
[1745136483986,9.1011745,1594.3,1594.2,6.86134]
[1745136485991,9.1011745,1594.3,1594.2,5.6067]
[1745136486482,10.3557345,1594.3,1594.2,5.6067]
[1745136486685,9.1011745,1594.3,1594.2,5.6067]
[1745136487980,8.06724985,1594.4,1594.2,5.6067]
[1745136488180,6.81270985,1594.4,1594.2,5.6067]
[1745136488685,6.81270985,1594.4,1594.2,6.86134]
[1745136488883,6.81270985,1594.4,1594.3,1.6568]
[1745136489686,6.81270985,1594.4,1594.3,2.91136]
[1745136490086,4.18990985,1594.4,1594.3,2.91136]
[1745136492289,4.98992344,1594.4,1594.3,2.91136]
[1745136493681,6.69612344,1594.4,1594.3,2.91136]
[1745136495480,1.7062,1594.4,1594.3,2.91136]
[1745136496786,2.5029,1594.4,1594.3,2.91136]
[1745136496988,1.7062,1594.4,1594.2,6.2793]
[1745136497289,2.4885,1594.3,1594.2,2.228]
[1745136498294,4.62196,1594.3,1594.2,2.228]
[1745136498694,3.3674,1594.3,1594.2,2.228]
[1745136498893,3.3674,1594.3,1594.2,3.48264]
[1745136499097,3.3674,1594.3,1594.2,2.228]
[1745136501297,4.62196,1594.3,1594.2,2.228]
[1745136501889,3.3674,1594.3,1594.2,2.228]
[1745136502396,4.62196,1594.3,1594.2,2.228]
[1745136502799,7.55730985,1594.3,1594.2,2.228]
[1745136505303,8.81186985,1594.3,1594.2,2.228]
[1745136505605,7.55730985,1594.3,1594.2,2.228]
[1745136506296,5.88170985,1594.3,1594.2,3.48264]
[1745136506503,5.88170985,1594.3,1594.2,3.923]
[1745136506700,5.88170985,1594.3,1594.2,2.228]
[1745136508206,5.88170985,1594.3,1594.2,3.48264]
[1745136508506,5.88170985,1594.3,1594.2,2.228]
[1745136508810,7.13626985,1594.3,1594.2,2.228]
[1745136509115,5.88170985,1594.3,1594.2,2.228]
[1745136510313,5.88170985,1594.3,1594.2,3.48264]
[1745136510609,5.88170985,1594.3,1594.2,2.228]
[1745136511107,5.88170985,1594.3,1594.2,3.48264]
[1745136511308,6.68166772,1594.3,1594.2,3.48264]
[1745136511606,6.68166772,1594.3,1594.2,2.228]
[1745136511906,6.68166772,1594.3,1594.2,3.48264]
[1745136515212,6.68166772,1594.3,1594.2,2.228]
[1745136515614,6.68166772,1594.3,1594.2,3.48264]
[1745136517517,6.68166772,1594.3,1594.2,5.19214]
[1745136518917,5.88170985,1594.3,1594.2,5.19214]
[1745136519319,5.88170985,1594.3,1594.2,3.48264]
[1745136521012,5.88170985,1594.3,1594.2,2.228]
[1745136521219,5.88170985,1594.3,1594.2,3.48264]
[1745136521416,5.88170985,1594.3,1594.2,2.228]
[1745136521610,5.88170985,1594.3,1594.2,3.48264]
[1745136524115,7.13626985,1594.3,1594.2,2.228]
[1745136525120,5.88170985,1594.3,1594.2,2.228]
[1745136525321,7.13626985,1594.3,1594.2,2.228]
[1745136527620,15.03121932,1594.3,1594.2,2.228]
[1745136528320,10.03121932,1594.3,1594.2,2.228]
[1745136528522,10.03121932,1594.3,1594.2,3.48264]
[1745136529119,10.03121932,1594.3,1594.2,2.228]
[1745136532220,12.04751545,1594.3,1594.2,2.228]
[1745136533923,12.04751545,1594.3,1594.2,3.48264]
[1745136534129,12.04751545,1594.3,1594.2,2.228]
[1745136537924,10.79295545,1594.3,1594.2,3.48264]
[1745136538125,9.10115545,1594.3,1594.2,3.48264]
[1745136538329,9.10115545,1594.3,1594.2,6.88074]
[1745136539129,10.76755545,1594.3,1594.2,6.88074]
[1745136539430,9.10115545,1594.3,1594.2,6.88074]
[1745136539935,7.0825203,1594.3,1594.2,11.88074]
[1745136540926,7.0825203,1594.3,1594.2,6.88074]
[1745136542439,7.0825203,1594.3,1594.2,10.08854]
[1745136543538,4.99156577,1594.4,1594.3,1.25456]
[1745136543726,4.99156577,1594.4,1594.3,2.86776]
[1745136544033,1.25456,1594.3,1594.2,0.7888]
[1745136544240,1.2548,1594.0,1593.9,8.34333549]
[1745136544437,4.4626,1594.0,1593.9,8.34333549]
[1745136544734,4.4626,1594.0,1593.9,12.72433549]
[1745136545333,4.4626,1594.0,1593.9,14.95233549]
[1745136548649,13.56375545,1594.0,1593.9,6.609]
[1745136549335,16.98935545,1594.0,1593.9,6.609]
[1745136551039,9.10115545,1594.0,1593.9,7.86388]
[1745136551339,9.10115545,1594.0,1593.9,11.609]
[1745136551538,10.35595545,1594.0,1593.9,6.609]
[1745136551735,10.76155545,1594.0,1593.9,9.59328]
[1745136551935,10.76155545,1594.0,1593.9,8.3384]
[1745136552143,9.10115545,1594.0,1593.9,17.80108]
[1745136552737,7.07195867,1594.0,1593.9,17.80108]
[1745136553842,7.07195867,1594.0,1593.9,12.80108]
[1745136557347,1.6604,1594.1,1593.9,12.80108]
[1745136557641,1.2548,1594.0,1593.9,2.228]
[1745136557836,6.1318,1594.0,1593.9,2.228]
[1745136560341,11.1318,1594.0,1593.9,2.228]
[1745136561440,15.31568282,1594.0,1593.9,2.228]
[1745136561942,16.96878282,1594.0,1593.9,2.228]
[1745136564960,11.96878282,1594.0,1593.9,2.228]
[1745136565359,14.85709025,1594.0,1593.9,2.228]
[1745136569763,14.85709025,1594.0,1593.9,3.48288]
[1745136569964,14.85709025,1594.0,1593.9,2.228]
[1745136570662,14.85709025,1594.0,1593.9,3.48288]
[1745136570867,14.85709025,1594.0,1593.9,2.228]
[1745136571764,14.85709025,1594.0,1593.9,3.48288]
[1745136572071,14.85709025,1594.0,1593.9,6.77708]
[1745136572371,14.85709025,1594.0,1593.9,5.5222]
[1745136572861,14.85709025,1594.0,1593.9,6.77708]
[1745136573172,14.85709025,1594.0,1593.9,5.5222]
[1745136573766,14.85709025,1594.0,1593.9,6.77708]
[1745136574072,11.96565181,1594.0,1593.9,5.5222]
[1745136574371,11.96565181,1594.0,1593.9,6.77708]
[1745136574571,11.96565181,1594.0,1593.9,5.5222]
[1745136574971,4.18075181,1594.0,1593.9,6.77708]
[1745136575273,4.18075181,1594.0,1593.9,11.77708]
[1745136577365,1.6002,1594.3,1594.1,1.25468]
[1745136577565,1.6002,1594.3,1594.2,6.1111]
[1745136577764,2.85476,1594.3,1594.2,6.1111]
[1745136578168,2.85476,1594.3,1594.2,8.3391]
[1745136580077,1.6002,1594.3,1594.2,9.59374]
[1745136580275,1.6002,1594.3,1594.2,6.606]
[1745136580276,2.85476,1594.3,1594.2,6.606]
[1745136581875,2.85476,1594.3,1594.2,7.86064]
[1745136582076,1.6002,1594.3,1594.2,7.86064]
[1745136583883,2.85476,1594.3,1594.2,7.86064]
[1745136586283,1.6002,1594.3,1594.2,7.86064]
[1745136586477,9.11245181,1594.4,1594.2,7.86064]
[1745136586685,9.04665181,1594.4,1594.3,2.95036]
[1745136586983,7.38855181,1594.4,1594.3,4.62516]
[1745136588777,10.30644181,1594.4,1594.2,7.86058]
[1745136588981,1.6634,1594.3,1594.2,7.86058]
[1745136589285,3.78856,1594.3,1594.2,7.86058]
[1745136589680,2.534,1594.3,1594.2,7.86058]
[1745136591590,3.78856,1594.3,1594.2,7.86058]
[1745136592488,1.6634,1594.3,1594.2,7.86058]
[1745136592691,4.18075181,1594.4,1594.3,1.25456]
[1745136592988,4.18075181,1594.4,1594.3,3.88096]
[1745136593182,5.85605181,1594.4,1594.3,3.88096]
[1745136595696,1.6753,1594.4,1594.3,3.88096]
[1745136598393,7.38855181,1594.6,1594.3,2.6264]
[1745136598591,0.8591,1594.5,1594.3,2.6264]
[1745136598798,8.99175181,1594.6,1594.5,1.25441]
[1745136599091,8.99175181,1594.6,1594.5,7.85941]
[1745136602601,10.24608181,1594.6,1594.5,7.85941]
[1745136603397,8.99175181,1594.6,1594.5,7.85941]
[1745136603989,10.24608181,1594.6,1594.5,6.605]
[1745136604192,11.06533,1594.6,1594.5,6.605]
[1745136604496,6.06533,1594.6,1594.5,6.605]
[1745136611199,6.06533,1594.6,1594.5,7.85941]
[1745136611511,4.811,1594.6,1594.5,7.85941]
[1745136612100,8.99175181,1594.6,1594.5,7.85941]
[1745136612303,10.24608181,1594.6,1594.5,7.85941]
[1745136612600,8.99175181,1594.6,1594.5,7.85941]
[1745136613195,8.99175181,1594.6,1594.5,9.48661]
[1745136616904,10.24608181,1594.6,1594.5,9.48661]
[1745136617298,10.24608181,1594.6,1594.5,7.85941]
[1745136617794,8.99175181,1594.6,1594.5,7.85941]
[1745136617996,8.99175181,1594.6,1594.5,9.48781]
[1745136618605,10.24608181,1594.6,1594.5,9.48781]
[1745136619907,7.03828181,1594.6,1594.5,9.48781]
[1745136620105,10.24608181,1594.6,1594.5,9.48781]
[1745136621803,13.13713955,1594.6,1594.5,9.48781]
[1745136622407,11.88280955,1594.6,1594.5,9.48781]
[1745136624309,10.27960955,1594.6,1594.5,9.48781]
[1745136624713,11.90820955,1594.6,1594.5,9.48781]
[1745136627818,8.70040955,1594.6,1594.5,9.48781]
[1745136628112,11.90820955,1594.6,1594.5,9.48781]
[1745136628712,8.70040955,1594.6,1594.5,9.48781]
[1745136628913,11.90820955,1594.6,1594.5,9.48781]
[1745136633422,13.93740633,1594.6,1594.5,9.48781]
[1745136633917,10.72960633,1594.6,1594.5,9.48781]
[1745136634117,13.93740633,1594.6,1594.5,9.48781]
[1745136637820,10.72960633,1594.6,1594.5,9.48781]
[1745136638122,13.93740633,1594.6,1594.5,9.48781]
[1745136638322,15.19173633,1594.6,1594.5,9.48781]
[1745136638916,13.93740633,1594.6,1594.5,9.48781]
[1745136642009,9.10100633,1594.6,1594.5,9.48781]
[1745136642219,9.10100633,1594.6,1594.5,12.69561]
[1745136643014,10.77900633,1594.6,1594.5,12.69561]
[1745136644723,9.10100633,1594.6,1594.5,12.69561]
[1745136646425,4.19480348,1594.6,1594.5,12.69561]
[1745136647728,6.29220522,1594.7,1594.6,1.25433]
[1745136647925,6.29220522,1594.7,1594.6,3.68313]
[1745136648329,6.29220522,1594.7,1594.6,8.68313]
[1745136650932,3.4098,1594.9,1594.8,1.25417]
[1745136651134,3.4098,1594.9,1594.8,5.62017]
[1745136659047,4.66389,1594.9,1594.8,4.366]
[1745136660045,4.66389,1594.9,1594.8,5.62017]
[1745136661747,3.4098,1594.9,1594.8,5.62017]
[1745136661942,4.66389,1594.9,1594.8,5.62017]
[1745136662139,3.4098,1594.9,1594.8,5.62017]
[1745136663143,4.66389,1594.9,1594.8,5.62017]
[1745136663349,5.46359987,1594.9,1594.8,5.62017]
[1745136666049,5.46359987,1594.9,1594.8,4.366]
[1745136666550,11.75580509,1594.9,1594.8,4.366]
[1745136666850,11.75580509,1594.9,1594.8,5.62017]
[1745136667050,14.96360509,1594.9,1594.8,5.62017]
[1745136668153,14.96360509,1594.9,1594.8,4.366]
[1745136669452,13.70951509,1594.9,1594.8,5.62017]
[1745136671044,7.41730987,1594.9,1594.8,5.62017]
[1745136673653,7.41730987,1594.9,1594.8,7.37727]
[1745136674058,6.54000987,1594.9,1594.8,7.37727]
[1745136674355,4.00750987,1594.9,1594.8,7.37727]
[1745136674749,0.79970987,1594.9,1594.8,7.37727]
[1745136675158,6.29220522,1595.0,1594.9,1.25409]
[1745136675356,6.29220522,1595.0,1594.9,7.90749]
[1745136676263,6.29220522,1595.0,1594.9,10.13549]
[1745136679459,1.6442,1595.1,1595.0,1.25401]
[1745136679660,1.6442,1595.1,1595.0,2.97651]
[1745136679959,1.6442,1595.1,1594.9,2.228]
[1745136680161,6.13401,1595.0,1594.9,2.228]
[1745136680759,12.82291,1595.0,1594.9,2.228]
[1745136680962,7.82291,1595.0,1594.9,2.228]
[1745136683263,14.11511522,1595.0,1594.9,2.228]
[1745136683765,12.86110522,1595.0,1594.9,3.48209]
[1745136686962,6.5689,1595.0,1594.9,3.48209]
[1745136688574,6.5689,1595.0,1594.9,5.12849]
[1745136689449,4.8967,1595.0,1594.9,5.12849]
[1745136691869,6.29220522,1595.1,1595.0,1.25401]
[1745136692055,6.29220522,1595.1,1595.0,2.88981]
[1745136692259,6.29220522,1595.1,1595.0,6.75041]
[1745136693068,7.90790522,1595.1,1595.0,6.75041]
[1745136694068,7.90790522,1595.1,1595.0,5.95261]
[1745136694967,1.6157,1595.1,1595.0,5.95261]
[1745136701068,1.6157,1595.1,1595.0,3.48201]
[1745136703074,6.29220522,1595.3,1595.2,1.25386]
[1745136703262,6.29220522,1595.3,1595.2,5.60786]
[1745136703763,6.29220522,1595.3,1595.2,7.33586]
[1745136704267,6.29220522,1595.3,1595.2,9.56386]
[1745136706474,1.7554,1595.4,1595.3,1.25378]
[1745136708373,2.6185,1595.4,1595.3,1.25378]
[1745136708877,7.6185,1595.4,1595.2,6.582]
[1745136709078,1.7648,1595.3,1595.2,6.582]
[1745136709370,1.7648,1595.3,1595.2,7.83586]
[1745136709768,3.01858,1595.3,1595.2,6.582]
[1745136710470,1.7648,1595.3,1595.2,7.83586]
[1745136716076,8.01858,1595.3,1595.2,6.582]
[1745136719482,3.01858,1595.3,1595.2,6.582]
[1745136719674,6.22638,1595.3,1595.2,6.582]
[1745136722685,15.32711684,1595.3,1595.2,6.582]
[1745136727786,15.32711684,1595.3,1595.2,7.83586]
[1745136728495,14.07333684,1595.3,1595.2,7.83586]
[1745136728684,14.07333684,1595.3,1595.2,9.48016]
[1745136728983,14.07333684,1595.3,1595.2,10.33616]
[1745136730085,13.3009029,1595.3,1595.2,10.33616]
[1745136731778,13.3009029,1595.3,1595.2,6.582]
[1745136736893,13.3009029,1595.3,1595.2,7.83586]
[1745136737592,13.3009029,1595.3,1595.2,9.54106]
[1745136738184,7.0745229,1595.3,1595.2,9.54106]
[1745136738582,8.3283029,1595.3,1595.2,9.54106]
[1745136738890,7.0745229,1595.3,1595.2,14.54106]
[1745136739084,8.30116091,1595.4,1595.2,14.54106]
[1745136739085,8.30116091,1595.4,1595.3,1.25378]
[1745136739285,8.30116091,1595.4,1595.3,4.65018]
[1745136739487,8.30116091,1595.4,1595.3,3.3964]
[1745136739685,11.28836091,1595.4,1595.2,6.582]
[1745136739892,1.7335,1595.3,1595.2,6.582]
[1745136740094,1.7335,1595.3,1595.2,8.2872]
[1745136740389,2.98728,1595.3,1595.2,8.2872]
[1745136740589,3.79908,1595.3,1595.2,8.2872]
[1745136742884,3.79908,1595.3,1595.2,6.582]
[1745136745294,2.5453,1595.3,1595.2,6.582]
[1745136745484,3.79908,1595.3,1595.2,6.582]
[1745136751899,8.79908,1595.3,1595.2,2.228]
[1745136752094,1.25394,1595.1,1595.0,4.349]
[1745136752295,1.25414,1594.9,1594.8,4.349]
[1745136753194,2.98814,1594.9,1594.8,4.349]
[1745136753598,2.98814,1594.9,1594.8,5.60317]
[1745136753898,1.734,1594.9,1594.8,5.60317]
[1745136754100,1.734,1594.9,1594.8,8.11747]
[1745136754300,2.98809,1594.9,1594.8,8.11747]
[1745136754707,2.98809,1594.9,1594.8,6.8633]
[1745136754898,6.19589,1594.9,1594.8,4.349]
[1745136761306,1.25417,1594.8,1594.7,2.228]
[1745136761509,3.72997,1594.8,1594.7,2.228]
[1745136766401,2.89207,1594.8,1594.7,2.228]
[1745136766607,3.76757,1594.8,1594.7,2.228]
[1745136768212,6.97537,1594.8,1594.7,2.228]
[1745136768514,7.77509094,1594.8,1594.7,2.228]
[1745136772017,11.95415721,1594.8,1594.7,2.228]
[1745136775818,11.15443627,1594.8,1594.7,2.228]
[1745136788229,11.95426097,1594.8,1594.7,2.228]
[1745136791830,7.7751947,1594.8,1594.7,2.228]
[1745136792023,7.7751947,1594.8,1594.7,3.8637]
[1745136792925,7.7751947,1594.8,1594.7,5.5334]
[1745136793432,5.2617947,1594.8,1594.7,5.5334]
[1745136797832,9.44670411,1594.8,1594.7,5.5334]
[1745136801141,11.54442623,1594.8,1594.7,5.5334]
[1745136802139,13.24602623,1594.8,1594.7,5.5334]
[1745136802441,11.54442623,1594.8,1594.7,5.5334]
[1745136805948,8.33662623,1594.8,1594.7,5.5334]
[1745136806134,11.54442623,1594.8,1594.7,5.5334]
[1745136806536,10.29025623,1594.8,1594.7,11.78765]
[1745136806935,10.29025623,1594.8,1594.7,6.78765]
[1745136809442,10.29025623,1594.8,1594.7,11.78765]
[1745136810540,10.29025623,1594.8,1594.7,6.78765]
[1745136814661,14.48165028,1594.8,1594.7,6.78765]
[1745136817460,11.27385028,1594.8,1594.7,6.78765]
[1745136817958,6.23636363,1594.8,1594.7,11.78765]
[1745136818457,4.19139405,1594.8,1594.7,11.78765]
[1745136823266,1.7287,1595.0,1594.9,1.25409]
[1745136823454,1.7287,1595.0,1594.9,5.58809]
[1745136824158,1.7287,1595.0,1594.9,9.57709]
[1745136827066,2.5812,1595.0,1594.9,9.57709]
[1745136827969,3.83521,1595.0,1594.9,7.81609]
[1745136828171,4.68191,1595.0,1594.9,6.562]
[1745136828866,1.7287,1595.0,1594.9,7.81609]
[1745136829071,2.5315,1595.0,1594.9,7.81609]
[1745136833974,2.5315,1595.0,1594.9,9.46679]
[1745136837275,1.7287,1595.0,1594.9,9.46679]
[1745136844274,1.7287,1595.0,1594.9,7.81609]
[1745136845177,2.98271,1595.0,1594.9,7.81609]
[1745136845378,1.7287,1595.0,1594.9,7.81609]
[1745136850686,1.7287,1595.0,1594.9,9.42569]
[1745136851588,0.8495,1595.1,1595.0,1.25401]
[1745136851782,2.5863,1595.1,1595.0,1.25401]
[1745136852183,2.5863,1595.1,1595.0,3.48201]
[1745136852877,2.5863,1595.1,1595.0,5.09161]
[1745136855999,1.7368,1595.1,1595.0,5.09161]
[1745136856291,1.7368,1595.1,1595.0,6.72681]
[1745136856891,1.6774,1595.2,1595.1,1.25394]
[1745136857191,1.6774,1595.2,1595.1,2.96984]
[1745136857388,3.4238,1595.2,1595.1,2.96984]
[1745136858387,2.6046,1595.2,1595.1,2.96984]
[1745136862793,5.85739405,1595.4,1595.3,1.25378]
[1745136862994,5.85739405,1595.4,1595.3,8.78958]
[1745136866797,1.666,1595.4,1595.3,8.78958]
[1745136867096,1.666,1595.4,1595.3,5.58178]
[1745136867399,3.2996,1595.4,1595.3,8.78958]
[1745136871304,3.2996,1595.4,1595.3,5.58178]
[1745136871505,3.2996,1595.4,1595.3,8.78958]
[1745136874606,3.2996,1595.4,1595.3,10.48908]
[1745136876303,3.2996,1595.4,1595.3,8.78958]
[1745136877603,3.2996,1595.4,1595.3,5.58178]
[1745136877900,3.2996,1595.4,1595.3,8.78958]
[1745136878301,3.2996,1595.4,1595.3,10.50658]
[1745136878496,3.2996,1595.4,1595.3,11.35428]
[1745136880197,1.6336,1595.4,1595.3,11.35428]
[1745136883202,1.7044,1595.6,1595.5,1.25362]
[1745136883405,3.3221,1595.6,1595.5,1.25362]
[1745136884103,3.3221,1595.6,1595.5,3.48162]
[1745136885003,7.39919405,1595.7,1595.6,1.25354]
[1745136885207,4.19139405,1595.7,1595.6,5.57454]
[1745136885508,5.87459405,1595.7,1595.6,5.57454]
[1745136885805,6.73679405,1595.7,1595.6,5.57454]
[1745136887007,9.94459405,1595.7,1595.6,5.57454]
[1745136888206,5.7532,1595.7,1595.6,5.57454]
[1745136888508,2.5454,1595.7,1595.6,5.57454]
[1745136889004,1.6832,1595.7,1595.6,5.57454]
[1745136889306,1.6832,1595.7,1595.6,8.97414]
[1745136890115,1.6832,1595.7,1595.6,5.57454]
[1745136892703,1.6832,1595.7,1595.6,7.30624]
[1745136893108,1.6832,1595.7,1595.6,8.18344]
[1745136894213,3.2078,1595.9,1595.8,1.25339]
[1745136894404,9.48381434,1596.1,1596.0,1.25323]
[1745136894608,6.27601434,1596.1,1596.0,8.78203]
[1745136895109,6.27601434,1596.1,1596.0,13.42693]
[1745136896512,2.536,1596.2,1596.1,1.25315]
[1745136896712,2.536,1596.2,1596.1,2.93495]
[1745136898415,4.81380434,1596.4,1596.3,1.25299]
[1745136898714,3.53644434,1596.4,1596.3,5.57299]
[1745136899111,0.94504434,1596.4,1596.3,8.54889354]
[1745136899304,4.34e-06,1596.4,1596.3,8.54889354]
[1745136900612,9.45392525,1596.5,1596.4,1.25291]
[1745136900811,8.04167525,1596.5,1596.4,6.05771]
[1745136901112,2.474,1596.5,1596.4,6.05771]
[1745136901309,2.474,1596.5,1596.4,8.28571]
[1745136903808,0.8458,1596.7,1596.6,1.25276]
[1745136904009,1.6814,1596.7,1596.6,8.77956]
[1745136904916,5.56767525,1596.8,1596.7,1.25268]
[1745136905116,5.74411525,1596.8,1596.7,3.48068]
[1745136905306,0.49403525,1596.8,1596.7,5.11588]
[1745136905618,5.25e-06,1596.8,1596.7,5.11588]
[1745136906116,1.6842,1597.1,1597.0,1.25244]
[1745136906413,1.6842,1597.1,1597.0,5.57144]
[1745136907114,1.6842,1597.1,1597.0,8.77924]
[1745136907310,10.38942628,1597.4,1597.3,1.25221]
[1745136907612,10.38942628,1597.4,1597.3,8.77901]
[1745136909316,10.38942628,1597.4,1597.3,10.51211]
[1745136910422,12.46731153,1597.7,1597.6,1.25197]
[1745136910711,15.81171153,1597.7,1597.6,5.56997]
[1745136910915,20.81171153,1597.7,1597.6,5.56997]
[1745136911514,15.81171153,1597.7,1597.6,5.56997]
[1745136912323,12.46731153,1597.7,1597.6,5.56997]
[1745136912519,14.07541153,1597.7,1597.6,5.56997]
[1745136912822,2.4767,1597.7,1597.6,5.56997]
[1745136915918,10.6845,1597.7,1597.6,5.56997]
[1745136916121,10.6845,1597.7,1597.6,4.318]
[1745136916317,12.9125,1597.7,1597.6,5.56997]
[1745136916516,13.7201,1597.7,1597.6,5.56997]
[1745136916720,13.7201,1597.7,1597.6,4.318]
[1745136916922,1.25199,1597.6,1597.4,1.25208]
[1745136917223,3.2078,1597.5,1597.4,1.25208]
[1745136917624,9.8883,1597.5,1597.4,1.25208]
[1745136918124,12.1163,1597.5,1597.4,1.25208]
[1745136919326,7.1163,1597.5,1597.4,1.25208]
[1745136920226,4.8883,1597.5,1597.4,1.25208]
[1745136921823,9.8883,1597.5,1597.4,1.25208]
[1745136924431,4.8883,1597.5,1597.4,1.25208]
[1745136925628,6.14035,1597.5,1597.4,1.25208]
[1745136925828,4.8883,1597.5,1597.4,1.25208]
[1745136926640,4.8883,1597.5,1597.3,5.56316]
[1745136926836,3.3889,1597.4,1597.3,5.56316]
[1745136927633,4.64103,1597.4,1597.3,5.56316]
[1745136928037,3.3889,1597.4,1597.3,5.56316]
[1745136928236,5.6169,1597.4,1597.3,5.56316]
[1745136928939,6.86903,1597.4,1597.3,5.56316]
[1745136929639,6.86903,1597.4,1597.3,4.311]
[1745136930438,6.86903,1597.4,1597.3,5.56321]
[1745136930830,5.6169,1597.4,1597.3,5.56321]
[1745136931129,3.3889,1597.4,1597.3,5.56321]
[1745136932240,5.6169,1597.4,1597.3,5.56321]
[1745136932836,6.86903,1597.4,1597.3,5.56321]
[1745136933140,4.64103,1597.4,1597.3,5.56321]
[1745136934241,6.86903,1597.4,1597.3,5.56321]
[1745136934437,5.6169,1597.4,1597.3,5.56321]
[1745136935047,6.86903,1597.4,1597.3,5.56321]
[1745136935352,5.6169,1597.4,1597.3,5.56321]
[1745136936753,8.8247,1597.4,1597.3,5.56321]
[1745136938449,5.4358,1597.4,1597.3,5.56321]
[1745136938644,5.4358,1597.4,1597.3,7.18051]
[1745136939250,3.2078,1597.4,1597.3,7.18051]
[1745136942646,17.41126939,1598.1,1597.7,1.25187]
[1745136942846,2.5017,1597.8,1597.7,1.25187]
[1745136943257,1.6561,1597.8,1597.7,1.25187]
[1745136943458,1.6561,1597.8,1597.7,2.85897]
[1745136943657,2.90792,1597.8,1597.7,1.6071]
[1745136943956,2.90792,1597.8,1597.7,1.25189]
[1745136944357,2.90792,1597.8,1597.6,10.37381]
[1745136944558,2.485,1597.7,1597.6,10.37381]
[1745136945053,5.30519,1597.9,1597.7,1.25185]
[1745136945258,1.7048,1597.8,1597.7,2.97805]
[1745136945459,5.4358,1597.9,1597.7,1.7262]
[1745136945658,5.4358,1597.9,1597.8,3.84742]
[1745136946156,1.7048,1598.0,1597.9,1.25174]
[1745136946351,1.7048,1598.0,1597.9,2.97794]
[1745136946844,9.14806939,1598.1,1598.0,1.25166]
[1745136947055,10.85286939,1598.1,1598.0,2.97786]
[1745136947261,13.08086939,1598.1,1598.0,2.97786]
[1745136948562,10.52346939,1598.1,1598.0,2.97786]
[1745136948758,12.99076939,1598.1,1598.0,2.97786]
[1745136949253,4.6953,1598.1,1598.0,2.97786]
[1745136949658,2.228,1598.1,1598.0,2.97786]
[1745136950162,7.74935,1598.2,1598.0,2.97786]
[1745136950360,1.6607,1598.1,1598.0,2.97786]
[1745136950563,2.91228,1598.1,1597.9,5.55869]
[1745136950761,1.6607,1598.1,1598.0,1.25166]
[1745136952063,3.8887,1598.1,1598.0,2.98406]
[1745136953158,2.91228,1598.1,1598.0,1.7324]
[1745136953466,1.25166,1598.0,1597.9,4.307]
[1745136953667,2.84726,1598.0,1597.9,4.307]
[1745136954167,5.07526,1598.0,1597.9,5.55874]
[1745136954864,3.8236,1598.0,1597.9,5.55874]
[1745136955263,5.07526,1598.0,1597.9,5.55874]